[Event "*** Titled Tuesday Blitz"]
[Site "Chess.com"]
[Date "2020.05.05"]
[Round "5"]
[White "shnitez"]
[Black "svilson23"]
[Result "0-1"]
[WhiteElo "2487"]
[BlackElo "2256"]
[TimeControl "180+1"]
[EndTime "10:57:03 PDT"]
[Termination "svilson23 won on time"]

1. e4 {[%clk 0:03:00.9]} 1... c5 {[%clk 0:02:57.6]} 2. Nf3 {[%clk 0:03:00.1]}
2... Nc6 {[%clk 0:02:58.1]} 3. Bb5 {[%clk 0:02:59.3]} 3... e5 {[%clk 0:02:53.3]}
4. O-O {[%clk 0:02:50.3]} 4... Bd6 {[%clk 0:02:53.7]} 5. Na3 {[%clk 0:02:38.3]}
5... Nge7 {[%clk 0:02:52.7]} 6. Nc4 {[%clk 0:02:36.7]} 6... Bc7 {[%clk
0:02:53.1]} 7. Ne3 {[%clk 0:02:32.9]} 7... d5 {[%clk 0:02:44.3]} 8. exd5 {[%clk
0:02:31.2]} 8... Nxd5 {[%clk 0:02:43.7]} 9. d3 {[%clk 0:01:37.3]} 9... O-O
{[%clk 0:02:34]} 10. Nxd5 {[%clk 0:01:30.8]} 10... Qxd5 {[%clk 0:02:31.7]} 11.
h3 {[%clk 0:01:23.5]} 11... h6 {[%clk 0:02:25.6]} 12. Re1 {[%clk 0:01:18.9]}
12... Bd7 {[%clk 0:02:07.7]} 13. a3 {[%clk 0:01:09.2]} 13... Rae8 {[%clk
0:01:56.7]} 14. Bd2 {[%clk 0:00:57.4]} 14... a6 {[%clk 0:01:54.4]} 15. Bc4
{[%clk 0:00:55.3]} 15... Qd6 {[%clk 0:01:54.8]} 16. b4 {[%clk 0:00:35]} 16... b5
{[%clk 0:01:51.3]} 17. bxc5 {[%clk 0:00:33.1]} 17... Qxc5 {[%clk 0:01:50.6]} 18.
Bb3 {[%clk 0:00:33.3]} 18... Kh8 {[%clk 0:01:46.1]} 19. Bb4 {[%clk 0:00:24.8]}
19... Nxb4 {[%clk 0:01:44.6]} 20. axb4 {[%clk 0:00:25.7]} 20... Qc6 {[%clk
0:00:59.5]} 21. c4 {[%clk 0:00:21.1]} 21... Bf5 {[%clk 0:00:49.8]} 22. c5 {[%clk
0:00:18.7]} 22... f6 {[%clk 0:00:44.9]} 23. d4 {[%clk 0:00:18.5]} 23... exd4
{[%clk 0:00:32.1]} 24. Nxd4 {[%clk 0:00:18.2]} 24... Rxe1+ {[%clk 0:00:26.5]}
25. Qxe1 {[%clk 0:00:19.1]} 25... Qd7 {[%clk 0:00:20.2]} 26. Nxf5 {[%clk
0:00:15.4]} 26... Qxf5 {[%clk 0:00:20.7]} 27. Rxa6 {[%clk 0:00:11]} 27... Qf4
{[%clk 0:00:20.7]} 28. g3 {[%clk 0:00:10.9]} 28... Qf3 {[%clk 0:00:20.3]} 29.
Be6 {[%clk 0:00:05.1]} 29... Rd8 {[%clk 0:00:19.9]} 30. Bg4 {[%clk 0:00:04.1]}
30... Qb3 {[%clk 0:00:17.7]} 31. Re6 {[%clk 0:00:04]} 31... Be5 {[%clk
0:00:16.9]} 32. h4 {[%clk 0:00:03]} 32... Qc4 {[%clk 0:00:11.8]} 33. Re7 {[%clk
0:00:02.2]} 33... Qxg4 {[%clk 0:00:09]} 0-1

[Event "*** Titled Tuesday Blitz"]
[Site "Chess.com"]
[Date "2020.05.05"]
[Round "5"]
[White "Pavlov_Sergey"]
[Black "anon219"]
[Result "1-0"]
[WhiteElo "2607"]
[BlackElo "2761"]
[TimeControl "180+1"]
[EndTime "10:57:04 PDT"]
[Termination "Pavlov_Sergey won by resignation"]

1. c4 {[%clk 0:02:58.2]} 1... e6 {[%clk 0:02:58]} 2. g3 {[%clk 0:02:57.5]} 2...
d5 {[%clk 0:02:58.1]} 3. Bg2 {[%clk 0:02:58]} 3... d4 {[%clk 0:02:56.1]} 4. Nf3
{[%clk 0:02:57.9]} 4... c5 {[%clk 0:02:55.2]} 5. O-O {[%clk 0:02:58.2]} 5... Nf6
{[%clk 0:02:47.6]} 6. e3 {[%clk 0:02:57.9]} 6... Nc6 {[%clk 0:02:45.8]} 7. exd4
{[%clk 0:02:58]} 7... cxd4 {[%clk 0:02:46.7]} 8. d3 {[%clk 0:02:58.5]} 8... h6
{[%clk 0:02:44.8]} 9. Re1 {[%clk 0:02:54.2]} 9... Bd6 {[%clk 0:02:44.2]} 10. Na3
{[%clk 0:02:52.9]} 10... O-O {[%clk 0:02:39.4]} 11. Nc2 {[%clk 0:02:51.6]} 11...
e5 {[%clk 0:02:39.4]} 12. b4 {[%clk 0:02:51.1]} 12... a6 {[%clk 0:02:34.3]} 13.
b5 {[%clk 0:02:40.4]} 13... axb5 {[%clk 0:02:18.5]} 14. cxb5 {[%clk 0:02:40.2]}
14... Na7 {[%clk 0:02:19.2]} 15. a4 {[%clk 0:02:27.5]} 15... Re8 {[%clk
0:02:17.4]} 16. Ba3 {[%clk 0:02:22.9]} 16... Bg4 {[%clk 0:02:14.4]} 17. h3
{[%clk 0:02:21]} 17... Bh5 {[%clk 0:02:09]} 18. g4 {[%clk 0:02:18.2]} 18... Bg6
{[%clk 0:02:08.9]} 19. Nh4 {[%clk 0:02:16.8]} 19... Bxa3 {[%clk 0:01:56.7]} 20.
Nxa3 {[%clk 0:02:10.5]} 20... Bh7 {[%clk 0:01:31.6]} 21. Nc4 {[%clk 0:01:57]}
21... e4 {[%clk 0:01:28.7]} 22. Nf5 {[%clk 0:01:41.6]} 22... Bxf5 {[%clk
0:01:10.8]} 23. gxf5 {[%clk 0:01:41.3]} 23... e3 {[%clk 0:01:11.2]} 24. Qf3
{[%clk 0:01:32.4]} 24... Nc8 {[%clk 0:00:48]} 25. Qxb7 {[%clk 0:01:23.8]} 25...
Ra7 {[%clk 0:00:46.9]} 26. Qf3 {[%clk 0:01:18.8]} 26... Rae7 {[%clk 0:00:46.5]}
27. a5 {[%clk 0:01:11.8]} 27... Nd6 {[%clk 0:00:41.1]} 28. Nxd6 {[%clk
0:01:07.2]} 28... Qxd6 {[%clk 0:00:42]} 29. b6 {[%clk 0:01:05.5]} 29... Qb4
{[%clk 0:00:39.9]} 30. Reb1 {[%clk 0:01:00.5]} 30... Qd2 {[%clk 0:00:35.6]} 31.
b7 {[%clk 0:00:59.8]} 31... exf2+ {[%clk 0:00:31.9]} 32. Qxf2 {[%clk 0:00:59.2]}
32... Re2 {[%clk 0:00:32.3]} 33. Qf3 {[%clk 0:00:51.6]} 33... R2e3 {[%clk
0:00:18.8]} 34. Qf1 {[%clk 0:00:51.3]} 34... Nh5 {[%clk 0:00:11.5]} 35. b8=Q
{[%clk 0:00:47.2]} 35... Ng3 {[%clk 0:00:12]} 36. Qf2 {[%clk 0:00:40.8]} 36...
Ne2+ {[%clk 0:00:10.1]} 37. Kh2 {[%clk 0:00:39.1]} 37... Rxb8 {[%clk 0:00:09.9]}
38. Rxb8+ {[%clk 0:00:37.8]} 38... Kh7 {[%clk 0:00:10.8]} 39. f6 {[%clk
0:00:28.5]} 39... g6 {[%clk 0:00:10.3]} 40. Rb7 {[%clk 0:00:27.2]} 40... Kg8
{[%clk 0:00:08.9]} 41. a6 {[%clk 0:00:23.5]} 41... Qc3 {[%clk 0:00:09.1]} 42. a7
{[%clk 0:00:22.6]} 1-0

[Event "*** Titled Tuesday Blitz"]
[Site "Chess.com"]
[Date "2020.05.05"]
[Round "5"]
[White "ClassyEl"]
[Black "Keks2017"]
[Result "1-0"]
[WhiteElo "2553"]
[BlackElo "2388"]
[TimeControl "180+1"]
[EndTime "10:57:06 PDT"]
[Termination "ClassyEl won by resignation"]

1. d4 {[%clk 0:03:00.9]} 1... d6 {[%clk 0:02:59.2]} 2. Nf3 {[%clk 0:03:00.7]}
2... Nf6 {[%clk 0:02:58.6]} 3. c4 {[%clk 0:03:00.3]} 3... g6 {[%clk 0:02:58.4]}
4. Nc3 {[%clk 0:03:00.7]} 4... Bg7 {[%clk 0:02:58.3]} 5. Bg5 {[%clk 0:03:01.3]}
5... h6 {[%clk 0:02:52.4]} 6. Bh4 {[%clk 0:03:01.2]} 6... g5 {[%clk 0:02:45.4]}
7. Bg3 {[%clk 0:03:01.3]} 7... Nh5 {[%clk 0:02:45.2]} 8. e3 {[%clk 0:03:01.7]}
8... e6 {[%clk 0:02:44.4]} 9. Bd3 {[%clk 0:03:00.7]} 9... Nd7 {[%clk 0:02:44]}
10. Nd2 {[%clk 0:02:57.4]} 10... Nxg3 {[%clk 0:02:43.1]} 11. hxg3 {[%clk
0:02:57.7]} 11... Nf6 {[%clk 0:02:42.1]} 12. f4 {[%clk 0:02:53.2]} 12... Bd7
{[%clk 0:02:37.4]} 13. Nde4 {[%clk 0:02:47.3]} 13... Nxe4 {[%clk 0:02:34.3]} 14.
Bxe4 {[%clk 0:02:47.5]} 14... c6 {[%clk 0:02:33.1]} 15. Bf3 {[%clk 0:02:26.3]}
15... d5 {[%clk 0:02:23.5]} 16. c5 {[%clk 0:02:23.9]} 16... O-O {[%clk
0:02:10.4]} 17. Be2 {[%clk 0:02:15.1]} 17... f5 {[%clk 0:02:07.4]} 18. b4 {[%clk
0:02:10.2]} 18... a6 {[%clk 0:02:02.4]} 19. a4 {[%clk 0:02:10]} 19... Qf6 {[%clk
0:02:00.2]} 20. Qd2 {[%clk 0:02:04.2]} 20... Rfc8 {[%clk 0:01:41.8]} 21. O-O
{[%clk 0:02:01.8]} 21... g4 {[%clk 0:01:40.2]} 22. b5 {[%clk 0:01:59.2]} 22...
axb5 {[%clk 0:01:38.2]} 23. axb5 {[%clk 0:01:59.2]} 23... Qd8 {[%clk 0:01:36.5]}
24. Qb2 {[%clk 0:01:49.6]} 24... Rxa1 {[%clk 0:01:33.6]} 25. Rxa1 {[%clk
0:01:49.1]} 25... Ra8 {[%clk 0:01:32.5]} 26. b6 {[%clk 0:01:42.3]} 26... Rxa1+
{[%clk 0:01:31.1]} 27. Qxa1 {[%clk 0:01:42.6]} 27... Bf6 {[%clk 0:01:26.8]} 28.
Qa7 {[%clk 0:01:40.8]} 28... Bc8 {[%clk 0:01:25.4]} 29. Na2 {[%clk 0:01:39.4]}
29... h5 {[%clk 0:01:24.1]} 30. Nb4 {[%clk 0:01:36.5]} 30... h4 {[%clk
0:01:23.3]} 31. gxh4 {[%clk 0:01:13.4]} 31... Bxh4 {[%clk 0:01:22.5]} 32. Qb8
{[%clk 0:01:01.7]} 32... Bd7 {[%clk 0:00:29.9]} 33. Qxd8+ {[%clk 0:00:33.6]}
33... Bxd8 {[%clk 0:00:29.1]} 34. Ba6 {[%clk 0:00:32.2]} 34... Bc8 {[%clk
0:00:19.7]} 35. Nxc6 {[%clk 0:00:30.2]} 35... bxc6 {[%clk 0:00:19.5]} 36. Bxc8
{[%clk 0:00:30.5]} 36... Kf7 {[%clk 0:00:19.6]} 37. Bd7 {[%clk 0:00:31]} 37...
Ke7 {[%clk 0:00:18.3]} 38. Bxc6 {[%clk 0:00:31.4]} 38... Kf7 {[%clk 0:00:18.4]}
39. Kf2 {[%clk 0:00:29.3]} 39... Bh4+ {[%clk 0:00:16.2]} 40. Ke2 {[%clk
0:00:29.3]} 40... Bd8 {[%clk 0:00:16.5]} 41. Kd3 {[%clk 0:00:28.4]} 41... Ke7
{[%clk 0:00:16.6]} 42. Bb7 {[%clk 0:00:27.4]} 42... Kd7 {[%clk 0:00:15.9]} 43.
c6+ {[%clk 0:00:24.7]} 1-0

[Event "*** Titled Tuesday Blitz"]
[Site "Chess.com"]
[Date "2020.05.05"]
[Round "5"]
[White "LPSupi"]
[Black "maciek_92"]
[Result "1-0"]
[WhiteElo "2921"]
[BlackElo "2720"]
[TimeControl "180+1"]
[EndTime "10:57:07 PDT"]
[Termination "LPSupi won by checkmate"]

1. d4 {[%clk 0:03:00.9]} 1... Nf6 {[%clk 0:02:59.7]} 2. c4 {[%clk 0:03:00.8]}
2... e6 {[%clk 0:03:00.2]} 3. Nf3 {[%clk 0:03:00.2]} 3... b6 {[%clk 0:02:59.8]}
4. a3 {[%clk 0:02:59.3]} 4... Bb7 {[%clk 0:02:59.8]} 5. Nc3 {[%clk 0:02:59.4]}
5... d5 {[%clk 0:02:59.3]} 6. cxd5 {[%clk 0:02:59.6]} 6... exd5 {[%clk
0:03:00.2]} 7. Bg5 {[%clk 0:02:59.2]} 7... Nbd7 {[%clk 0:02:59.5]} 8. e3 {[%clk
0:02:58.9]} 8... a6 {[%clk 0:03:00]} 9. Bd3 {[%clk 0:02:59]} 9... Bd6 {[%clk
0:03:00.5]} 10. Qc2 {[%clk 0:02:57.1]} 10... h6 {[%clk 0:02:57]} 11. Bh4 {[%clk
0:02:54.9]} 11... O-O {[%clk 0:02:56.5]} 12. O-O {[%clk 0:02:54.4]} 12... Qe8
{[%clk 0:02:22.4]} 13. Bf5 {[%clk 0:02:42.6]} 13... g6 {[%clk 0:02:01.1]} 14.
Bxd7 {[%clk 0:02:08.7]} 14... Nxd7 {[%clk 0:02:00]} 15. Rfe1 {[%clk 0:02:06.1]}
15... f5 {[%clk 0:01:49.1]} 16. Bg3 {[%clk 0:02:04.9]} 16... Qe6 {[%clk
0:01:43]} 17. Rac1 {[%clk 0:01:56.7]} 17... Rac8 {[%clk 0:01:38.4]} 18. Ne2
{[%clk 0:01:54.3]} 18... g5 {[%clk 0:01:33.1]} 19. Qc3 {[%clk 0:01:28.6]} 19...
Rfe8 {[%clk 0:01:12.9]} 20. b4 {[%clk 0:01:02.1]} 20... Qf6 {[%clk 0:00:59.4]}
21. Bxd6 {[%clk 0:00:56.2]} 21... Qxd6 {[%clk 0:01:00.3]} 22. a4 {[%clk
0:00:37.4]} 22... f4 {[%clk 0:00:26.7]} 23. exf4 {[%clk 0:00:31.8]} 23... gxf4
{[%clk 0:00:27.6]} 24. Qd2 {[%clk 0:00:17.5]} 24... Rf8 {[%clk 0:00:15]} 25. Nc3
{[%clk 0:00:13.1]} 25... Rce8 {[%clk 0:00:13.4]} 26. b5 {[%clk 0:00:10.7]} 26...
a5 {[%clk 0:00:12]} 27. Qd3 {[%clk 0:00:11]} 27... Kg7 {[%clk 0:00:07.9]} 28.
Re2 {[%clk 0:00:10.9]} 28... Rxe2 {[%clk 0:00:07.4]} 29. Qxe2 {[%clk 0:00:09.4]}
29... Nf6 {[%clk 0:00:06.4]} 30. Ne5 {[%clk 0:00:07.4]} 30... Bc8 {[%clk
0:00:06.9]} 31. Qc2 {[%clk 0:00:07.7]} 31... Re8 {[%clk 0:00:03.1]} 32. Qg6+
{[%clk 0:00:05.9]} 32... Kf8 {[%clk 0:00:01.5]} 33. Qf7# {[%clk 0:00:05.8]} 1-0

[Event "*** Titled Tuesday Blitz"]
[Site "Chess.com"]
[Date "2020.05.05"]
[Round "5"]
[White "GMKrikor"]
[Black "plumalka"]
[Result "1-0"]
[WhiteElo "2851"]
[BlackElo "2452"]
[TimeControl "180+1"]
[EndTime "10:57:07 PDT"]
[Termination "GMKrikor won by resignation"]

1. Nf3 {[%clk 0:03:00.9]} 1... c5 {[%clk 0:02:58]} 2. c4 {[%clk 0:03:01.1]} 2...
Nc6 {[%clk 0:02:56.2]} 3. Nc3 {[%clk 0:03:01.4]} 3... e5 {[%clk 0:02:54]} 4. e3
{[%clk 0:03:01.2]} 4... Nf6 {[%clk 0:02:52.5]} 5. d4 {[%clk 0:03:01.4]} 5...
cxd4 {[%clk 0:02:52.2]} 6. exd4 {[%clk 0:03:01.4]} 6... e4 {[%clk 0:02:52.6]} 7.
Ne5 {[%clk 0:03:01.5]} 7... Bb4 {[%clk 0:02:48.6]} 8. Be2 {[%clk 0:03:01.4]}
8... O-O {[%clk 0:02:46.1]} 9. O-O {[%clk 0:03:01]} 9... d6 {[%clk 0:02:40.7]}
10. Nxc6 {[%clk 0:03:00.1]} 10... bxc6 {[%clk 0:02:41.6]} 11. a3 {[%clk
0:02:46.2]} 11... Ba5 {[%clk 0:02:30.9]} 12. b4 {[%clk 0:02:42.9]} 12... Bc7
{[%clk 0:02:30.2]} 13. d5 {[%clk 0:02:43.5]} 13... cxd5 {[%clk 0:02:24.5]} 14.
Nxd5 {[%clk 0:02:41.2]} 14... Bb7 {[%clk 0:02:15.1]} 15. Ne3 {[%clk 0:02:39.6]}
15... d5 {[%clk 0:02:10.5]} 16. Bb2 {[%clk 0:02:18.2]} 16... Qd6 {[%clk
0:01:53.2]} 17. g3 {[%clk 0:02:15.5]} 17... Rad8 {[%clk 0:01:45.3]} 18. c5
{[%clk 0:02:08.5]} 18... Qe6 {[%clk 0:01:38.7]} 19. Qd4 {[%clk 0:02:08.4]} 19...
Rfe8 {[%clk 0:01:31]} 20. Rfd1 {[%clk 0:02:07.4]} 20... h5 {[%clk 0:01:21.6]}
21. b5 {[%clk 0:01:59.1]} 21... h4 {[%clk 0:01:11.9]} 22. Bf1 {[%clk 0:01:46.6]}
22... hxg3 {[%clk 0:01:06]} 23. hxg3 {[%clk 0:01:47.5]} 23... Nh5 {[%clk
0:00:58.7]} 24. Be2 {[%clk 0:01:30.3]} 24... Nf6 {[%clk 0:00:56.5]} 25. Bg4
{[%clk 0:01:19.9]} 25... Qe5 {[%clk 0:00:34.6]} 26. Qxe5 {[%clk 0:01:18.9]}
26... Bxe5 {[%clk 0:00:35.5]} 27. Bxe5 {[%clk 0:01:19]} 27... Rxe5 {[%clk
0:00:32.7]} 28. c6 {[%clk 0:01:19.3]} 28... Bc8 {[%clk 0:00:30]} 29. Bxc8 {[%clk
0:01:19.4]} 29... Rxc8 {[%clk 0:00:30.9]} 30. a4 {[%clk 0:01:17]} 30... Kf8
{[%clk 0:00:26.9]} 31. Rac1 {[%clk 0:01:12.8]} 31... Ke7 {[%clk 0:00:24.6]} 32.
a5 {[%clk 0:00:58]} 32... d4 {[%clk 0:00:22.3]} 33. b6 {[%clk 0:00:58]} 33...
axb6 {[%clk 0:00:19.9]} 34. axb6 {[%clk 0:00:58.9]} 34... Rh8 {[%clk 0:00:17.1]}
35. Rxd4 {[%clk 0:00:44.9]} 35... Reh5 {[%clk 0:00:16.9]} 36. Nf1 {[%clk
0:00:37]} 36... e3 {[%clk 0:00:11.2]} 37. fxe3 {[%clk 0:00:33.2]} 37... Rh1+
{[%clk 0:00:10.8]} 38. Kg2 {[%clk 0:00:33.4]} 38... R8h2+ {[%clk 0:00:09.8]} 39.
Nxh2 {[%clk 0:00:33.5]} 39... Rxc1 {[%clk 0:00:10.7]} 40. b7 {[%clk 0:00:29.8]}
40... Rc2+ {[%clk 0:00:07.5]} 41. Kf1 {[%clk 0:00:27]} 41... Nd5 {[%clk
0:00:04.8]} 42. Rxd5 {[%clk 0:00:26.6]} 1-0

[Event "*** Titled Tuesday Blitz"]
[Site "Chess.com"]
[Date "2020.05.05"]
[Round "5"]
[White "Mili_Brizzi"]
[Black "EugeneRougon"]
[Result "0-1"]
[WhiteElo "2444"]
[BlackElo "2749"]
[TimeControl "180+1"]
[EndTime "10:57:07 PDT"]
[Termination "EugeneRougon won by resignation"]

1. d4 {[%clk 0:03:00.9]} 1... d6 {[%clk 0:02:59.3]} 2. c4 {[%clk 0:02:58.8]}
2... g6 {[%clk 0:02:59.2]} 3. e4 {[%clk 0:02:46.4]} 3... Bg7 {[%clk 0:02:58.8]}
4. Nc3 {[%clk 0:02:43.7]} 4... e5 {[%clk 0:02:58.6]} 5. Nf3 {[%clk 0:02:37.3]}
5... Nc6 {[%clk 0:02:44]} 6. d5 {[%clk 0:02:34.1]} 6... Nd4 {[%clk 0:02:35.9]}
7. Be3 {[%clk 0:02:18.6]} 7... Bg4 {[%clk 0:02:31.3]} 8. Be2 {[%clk 0:02:16.9]}
8... Nxe2 {[%clk 0:02:31.5]} 9. Qxe2 {[%clk 0:02:12.2]} 9... Nf6 {[%clk
0:02:32.4]} 10. h3 {[%clk 0:02:05.9]} 10... Bd7 {[%clk 0:02:32.2]} 11. g4 {[%clk
0:01:59.9]} 11... O-O {[%clk 0:02:26.9]} 12. O-O-O {[%clk 0:01:54.6]} 12... a6
{[%clk 0:02:08.2]} 13. Kb1 {[%clk 0:01:51.3]} 13... b5 {[%clk 0:02:07.4]} 14. g5
{[%clk 0:01:28.8]} 14... Nh5 {[%clk 0:02:05.5]} 15. Ka1 {[%clk 0:01:08.5]} 15...
Nf4 {[%clk 0:01:53.2]} 16. Bxf4 {[%clk 0:00:58.8]} 16... exf4 {[%clk 0:01:54.1]}
17. Qd2 {[%clk 0:00:50.9]} 17... bxc4 {[%clk 0:01:51.6]} 18. h4 {[%clk
0:00:47.2]} 18... Rb8 {[%clk 0:01:22.5]} 19. Qxf4 {[%clk 0:00:43.5]} 19... Qc8
{[%clk 0:01:10]} 20. Qe3 {[%clk 0:00:36.8]} 20... Re8 {[%clk 0:00:50.3]} 21. Nd2
{[%clk 0:00:31.2]} 21... c6 {[%clk 0:00:39.9]} 22. Nxc4 {[%clk 0:00:24.1]} 22...
Qc7 {[%clk 0:00:34.9]} 23. Rc1 {[%clk 0:00:20.8]} 23... c5 {[%clk 0:00:31.8]}
24. h5 {[%clk 0:00:18]} 24... Rb4 {[%clk 0:00:31.5]} 25. Nd2 {[%clk 0:00:13.6]}
25... Reb8 {[%clk 0:00:31.1]} 26. Rc2 {[%clk 0:00:13.2]} 26... Qa5 {[%clk
0:00:30.3]} 27. Ndb1 {[%clk 0:00:12.5]} 27... Ba4 {[%clk 0:00:28.4]} 28. Rd2
{[%clk 0:00:11.4]} 28... Bb3 {[%clk 0:00:26.7]} 29. Rc1 {[%clk 0:00:09.3]} 29...
Bxa2 {[%clk 0:00:21]} 30. Na3 {[%clk 0:00:06.9]} 30... Bb3 {[%clk 0:00:19.2]}
31. Kb1 {[%clk 0:00:05]} 31... Ra4 {[%clk 0:00:19]} 32. f4 {[%clk 0:00:03.9]}
32... Rxa3 {[%clk 0:00:18.9]} 33. bxa3 {[%clk 0:00:04.1]} 33... Qxa3 {[%clk
0:00:15.3]} 34. Rb2 {[%clk 0:00:03.8]} 34... Ba2+ {[%clk 0:00:14.8]} 35. Kc2
{[%clk 0:00:02.9]} 35... Rxb2+ {[%clk 0:00:14.9]} 36. Kd3 {[%clk 0:00:03.8]}
36... Rb3 {[%clk 0:00:14.6]} 0-1

[Event "*** Titled Tuesday Blitz"]
[Site "Chess.com"]
[Date "2020.05.05"]
[Round "5"]
[White "Char_dasha"]
[Black "Boninknights"]
[Result "0-1"]
[WhiteElo "2264"]
[BlackElo "2154"]
[TimeControl "180+1"]
[EndTime "10:57:07 PDT"]
[Termination "Boninknights won on time"]

1. d4 {[%clk 0:02:57.1]} 1... Nf6 {[%clk 0:02:58.6]} 2. c4 {[%clk 0:02:57.1]}
2... e6 {[%clk 0:02:57.6]} 3. Nc3 {[%clk 0:02:56.9]} 3... Bb4 {[%clk 0:02:55.7]}
4. Qc2 {[%clk 0:02:56.1]} 4... c5 {[%clk 0:02:54.3]} 5. dxc5 {[%clk 0:02:53.7]}
5... Na6 {[%clk 0:02:53.4]} 6. a3 {[%clk 0:02:53.4]} 6... Bxc3+ {[%clk 0:02:52]}
7. Qxc3 {[%clk 0:02:53.6]} 7... Nxc5 {[%clk 0:02:51.5]} 8. b4 {[%clk 0:02:53.7]}
8... Nce4 {[%clk 0:02:48.8]} 9. Qe3 {[%clk 0:02:53.4]} 9... Nd6 {[%clk
0:02:41.7]} 10. Qd3 {[%clk 0:02:40.6]} 10... Nf5 {[%clk 0:02:33.6]} 11. e4
{[%clk 0:02:35]} 11... Ne7 {[%clk 0:02:31.5]} 12. e5 {[%clk 0:02:26.4]} 12...
Nfg8 {[%clk 0:02:27.4]} 13. Nf3 {[%clk 0:02:24.7]} 13... b6 {[%clk 0:02:18.3]}
14. Qe4 {[%clk 0:02:16.4]} 14... Rb8 {[%clk 0:02:15.1]} 15. Bd3 {[%clk
0:02:16.3]} 15... Bb7 {[%clk 0:02:12.2]} 16. Qg4 {[%clk 0:02:16]} 16... Ng6
{[%clk 0:02:07.8]} 17. Bb2 {[%clk 0:01:44.5]} 17... Nh6 {[%clk 0:01:57.4]} 18.
Qd4 {[%clk 0:01:19.5]} 18... Bxf3 {[%clk 0:01:46.8]} 19. gxf3 {[%clk 0:01:18.9]}
19... Qg5 {[%clk 0:01:45.2]} 20. h4 {[%clk 0:01:07.8]} 20... Qf4 {[%clk
0:01:25.2]} 21. Qxf4 {[%clk 0:00:34.8]} 21... Nxf4 {[%clk 0:01:22.2]} 22. Be4
{[%clk 0:00:35.2]} 22... Nf5 {[%clk 0:01:18.3]} 23. O-O-O {[%clk 0:00:33.4]}
23... Ke7 {[%clk 0:01:12.5]} 24. Kb1 {[%clk 0:00:31.7]} 24... Rhc8 {[%clk
0:01:06.9]} 25. Bxf5 {[%clk 0:00:21.3]} 25... exf5 {[%clk 0:01:03.7]} 26. Rhg1
{[%clk 0:00:21.8]} 26... g6 {[%clk 0:01:00.2]} 27. e6 {[%clk 0:00:12.1]} 27...
Nxe6 {[%clk 0:00:53.9]} 28. Rc1 {[%clk 0:00:10.8]} 28... Rc6 {[%clk 0:00:50.5]}
29. Rge1 {[%clk 0:00:08.7]} 29... Rbc8 {[%clk 0:00:48]} 30. c5 {[%clk
0:00:06.4]} 30... bxc5 {[%clk 0:00:45.7]} 31. b5 {[%clk 0:00:06.7]} 31... Rb6
{[%clk 0:00:43.8]} 32. a4 {[%clk 0:00:06.9]} 32... a6 {[%clk 0:00:42.4]} 33. Ba3
{[%clk 0:00:06.6]} 33... Kd8 {[%clk 0:00:37.5]} 34. Ka2 {[%clk 0:00:03.1]} 34...
axb5 {[%clk 0:00:35.3]} 35. axb5 {[%clk 0:00:03.4]} 35... Rxb5 {[%clk
0:00:34.4]} 36. Rb1 {[%clk 0:00:03.4]} 36... Rcb8 {[%clk 0:00:33.7]} 37. Rxb5
{[%clk 0:00:03.2]} 37... Rxb5 {[%clk 0:00:32.7]} 38. Re5 {[%clk 0:00:03.8]}
38... Kc7 {[%clk 0:00:30.6]} 39. h5 {[%clk 0:00:03.4]} 39... Kc6 {[%clk
0:00:29.5]} 40. hxg6 {[%clk 0:00:03.6]} 40... hxg6 {[%clk 0:00:28.8]} 41. Re2
{[%clk 0:00:03.5]} 41... d5 {[%clk 0:00:27.4]} 0-1

[Event "*** Titled Tuesday Blitz"]
[Site "Chess.com"]
[Date "2020.05.05"]
[Round "5"]
[White "tamarozi99"]
[Black "Kensei26"]
[Result "1/2-1/2"]
[WhiteElo "2001"]
[BlackElo "2152"]
[TimeControl "180+1"]
[EndTime "10:57:07 PDT"]
[Termination "Game drawn by agreement"]

1. e4 {[%clk 0:03:00.9]} 1... d6 {[%clk 0:02:54.8]} 2. d4 {[%clk 0:02:59.9]}
2... Nf6 {[%clk 0:02:53.7]} 3. Nc3 {[%clk 0:02:59.9]} 3... g6 {[%clk 0:02:53.4]}
4. Nf3 {[%clk 0:02:59.4]} 4... Bg7 {[%clk 0:02:53.4]} 5. h3 {[%clk 0:02:59.7]}
5... O-O {[%clk 0:02:52.7]} 6. Be3 {[%clk 0:02:59.9]} 6... c6 {[%clk 0:02:51.7]}
7. a4 {[%clk 0:02:58.6]} 7... Qc7 {[%clk 0:02:51.2]} 8. Be2 {[%clk 0:02:49.3]}
8... Nbd7 {[%clk 0:02:50.7]} 9. O-O {[%clk 0:02:48.8]} 9... Re8 {[%clk
0:02:50.4]} 10. a5 {[%clk 0:02:41.9]} 10... e5 {[%clk 0:02:50.3]} 11. d5 {[%clk
0:02:41.8]} 11... cxd5 {[%clk 0:02:49]} 12. Nxd5 {[%clk 0:02:26]} 12... Nxd5
{[%clk 0:02:48.2]} 13. Qxd5 {[%clk 0:02:18.2]} 13... Nf6 {[%clk 0:02:34.7]} 14.
Qc4 {[%clk 0:01:37]} 14... Qxc4 {[%clk 0:02:25]} 15. Bxc4 {[%clk 0:01:37.9]}
15... Nxe4 {[%clk 0:02:22.2]} 16. Bd5 {[%clk 0:01:37.6]} 16... Nf6 {[%clk
0:02:22]} 17. c4 {[%clk 0:01:23]} 17... Nxd5 {[%clk 0:02:18.2]} 18. cxd5 {[%clk
0:01:23.9]} 18... Bd7 {[%clk 0:02:09.5]} 19. Rfc1 {[%clk 0:01:23.4]} 19... Bb5
{[%clk 0:01:46.9]} 20. Rc7 {[%clk 0:01:07.1]} 20... Ba6 {[%clk 0:01:42.6]} 21.
Ng5 {[%clk 0:00:45.4]} 21... Rec8 {[%clk 0:01:32.7]} 22. Rac1 {[%clk 0:00:43.4]}
22... b5 {[%clk 0:00:51.5]} 23. axb6 {[%clk 0:00:39.5]} 23... axb6 {[%clk
0:00:50.5]} 24. Bxb6 {[%clk 0:00:37.5]} 24... Rxc7 {[%clk 0:00:36.1]} 25. Rxc7
{[%clk 0:00:34.6]} 25... Rb8 {[%clk 0:00:25.6]} 26. Be3 {[%clk 0:00:22.6]} 26...
Rxb2 {[%clk 0:00:20.4]} 27. Nxf7 {[%clk 0:00:21.8]} 27... Rb7 {[%clk 0:00:19.3]}
28. Rxb7 {[%clk 0:00:20.6]} 28... Bxb7 {[%clk 0:00:19.6]} 29. Nxd6 {[%clk
0:00:21.4]} 29... Bxd5 {[%clk 0:00:19.9]} 30. Nb5 {[%clk 0:00:16.7]} 30... Bb7
{[%clk 0:00:19.3]} 31. f3 {[%clk 0:00:16.7]} 31... e4 {[%clk 0:00:19.1]} 32.
fxe4 {[%clk 0:00:16.5]} 32... Bxe4 {[%clk 0:00:19.1]} 33. Kf2 {[%clk 0:00:16.7]}
33... Bb7 {[%clk 0:00:18.7]} 34. Nd4 {[%clk 0:00:16.9]} 34... h5 {[%clk
0:00:17.3]} 35. g4 {[%clk 0:00:16.4]} 35... h4 {[%clk 0:00:16.4]} 36. g5 {[%clk
0:00:15.4]} 36... Kf7 {[%clk 0:00:16.2]} 37. Nf3 {[%clk 0:00:15.3]} 37... Bxf3
{[%clk 0:00:15.1]} 38. Kxf3 {[%clk 0:00:16.2]} 38... Be5 {[%clk 0:00:15.1]} 39.
Bf2 {[%clk 0:00:14.3]} 39... Ke6 {[%clk 0:00:14.9]} 40. Bxh4 {[%clk 0:00:14]}
40... Kf5 {[%clk 0:00:15.8]} 41. Bg3 {[%clk 0:00:12.5]} 41... Bxg3 {[%clk
0:00:15.3]} 42. Kxg3 {[%clk 0:00:13.4]} 42... Kxg5 {[%clk 0:00:16]} 43. h4+
{[%clk 0:00:12.4]} 43... Kh5 {[%clk 0:00:15.9]} 1/2-1/2